[Event "Slovakia Open 2022"]
[Site "Bratislava"]
[Date "2022.10.02"]
[Round "8.8"]
[White "Babula, Vlastimil"]
[Black "Klabis, Rokas"]
[Result "0-1"]
[ECO "C54"]
[WhiteElo "2574"]
[BlackElo "2396"]
[Annotator "TA"]
[PlyCount "94"]
[EventDate "2022.09.30"]
[EventCountry "SVK"]
[SourceTitle "playchess.com"]
[Source "ChessBase"]
[SourceQuality "1"]
[TimeControl "2700+10"]

{[%evp 10,94,11,7,10,10,14,16,15,14,15,16,26,3,33,-12,-15,-18,0,0,8,-7,-16,-5,0,-48,-66,-49,-54,-54,0,0,0,-80,-75,-64,-78,-101,-93,-167,-162,-158,-162,-160,-108,-103,-91,-87,-67,-138,-123,-214,-208,-235,-229,-260,-250,-953,-866,-949,-962,-951,-900,-865,-864,-858,-858,-818,-798,-736,-701,-5547,-4990,-29952,-29953,-29941,-146,-29969,-29970,-29969,-29971,-29970,-29971,-29969,-29970,-29979,-29980]} 1. e4 {[%emt 0:00:07]} e5 {[%emt 0:00:02]} 2. Nf3 {[%emt 0:00:05]} Nc6 {[%emt 0:00:02]} 3. Bc4 {[%emt 0:00:07]} Bc5 {[%emt 0:00:17]} 4. O-O {[%emt 0:00:03]} Nf6 {[%emt 0:00:02]} 5. d3 {[%emt 0:00:01]} d6 {[%emt 0:00:02]} 6. c3 {[%emt 0:00:03]} a5 {[%emt 0:00:06] C54: Giuoco Piano: 4 c3 Nf6, main lines with 5 d4 and 5 d3.} 7. Re1 {[%emt 0:00:35]} Ba7 {[%emt 0:00:11]} 8. Nbd2 {[%emt 0:00:06]} O-O {[%emt 0:05:09] The position is equal.} 9. h3 {[%emt 0:00:50]} h6 {[%emt 0:00:14]} 10. Nf1 {[%emt 0:00:41]} Ne7 {[%emt 0:01:45]} 11. d4 {[%emt 0:00:36]} Ng6 {[%emt 0:00:14]} 12. a4 {[%emt 0:06:02] [#]} exd4 $146 {[%emt 0:03:45]} ({Predecessor:} 12... Re8 13. Ng3 c6 14. Bb3 Qc7 15. Be3 Be6 16. Bc2 b5 17. Qd2 Rab8 18. Nf5 Bxf5 19. exf5 {1-0 (38) Tekeyev,Z (2392)-Puranik,A (2536) Chess.com INT 2019}) 13. Nxd4 {[%emt 0:00:30] [#]} Nxe4 $1 {[%emt 0:04:24]} 14. Qh5 {[%emt 0:08:09]} d5 {[%emt 0:06:15]} 15. Bxd5 {[%emt 0:04:13]} Nf6 {[%emt 0:00:02][%csl LRd5,LRh5]} 16. Qxg6 {[%emt 0:00:05][%cal Oc1h6] Strongly threatening Bxh6!} Nxd5 {[%emt 0:00:06]} 17. Qg3 {[%emt 0:00:16]} (17. Qe4 $11 {should be considered.}) 17... Bxd4 $15 {[%emt 0:03:47]} 18. cxd4 {[%emt 0:00:01]} Ra6 {[%emt 0:00:01]} 19. Bd2 {[%emt 0:02:55]} Nb4 {[%emt 0:03:10]} (19... Rg6 $15 20. Qf3 b6) 20. Bxb4 $11 {[%emt 0:00:46]} axb4 {[%emt 0:00:01]} 21. Rac1 {[%emt 0:04:41]} (21. Red1 $11 {keeps the balance.}) 21... Qxd4 $17 {[%emt 0:05:07]} 22. b3 {[%emt 0:00:06]} Rg6 {[%emt 0:01:30]} 23. Qf3 {[%emt 0:01:51]} Be6 {[%emt 0:00:50] And now ...Bd5 would win.} 24. Ne3 {[%emt 0:01:57] Inhibits Bd5.} (24. Rxc7 $2 Bd5 25. Qg3 Rxg3 $19) (24. Red1 $17 {might work better.} Qe5 25. Rd3) 24... c6 $1 $19 {[%emt 0:00:24]} ({Resist} 24... Bxb3 25. Nf5 Bd5 26. Ne7+ Kh7 27. Nxd5 $18) 25. Red1 {[%emt 0:00:31]} Qh4 {[%emt 0:02:16] Black is more active.} 26. Rd3 {[%emt 0:01:44]} Rf6 {[%emt 0:01:28]} ({Better is} 26... Re8 27. Kh2 Rd8) 27. Qg3 $17 {[%emt 0:01:38]} Qe4 {[%emt 0:00:16]} 28. Ng4 {[%emt 0:02:15]} Rg6 {[%emt 0:00:02][%cal Re6g4]} 29. Re3 {[%emt 0:00:02]} ({White should try} 29. Qe3 $15 Qxe3 30. Nxe3) 29... Qd4 {[%emt 0:00:04]} 30. Qe5 {[%emt 0:01:41]} (30. Rd3 $17 {was worth a try.} Qb2 31. Rcd1) 30... Qd2 $19 {[%emt 0:00:07]} 31. Rce1 {[%emt 0:00:32]} f5 $1 {[%emt 0:02:33]} ({Not} 31... Bxg4 32. hxg4 Rxg4 33. Qe7 $17) 32. Nh2 {[%emt 0:03:08] [#]} f4 $1 {[%emt 0:02:39]} 33. Nf3 $2 {[%emt 0:01:28]} (33. R3e2 Qd3 34. Ng4) 33... fxe3 {[%emt 0:01:04]} 34. Nxd2 {[%emt 0:00:03]} exf2+ {[%emt 0:00:02]} ({Worse is} 34... exd2 35. Rd1 Bxh3 36. Rxd2 Rxg2+ 37. Kh1 $19) 35. Kh2 {[%emt 0:00:35]} fxe1=Q {[%emt 0:00:02]} 36. Qxe1 {[%emt 0:00:03]} Bd5 {[%emt 0:00:06]} 37. Nf3 {[%emt 0:00:57] [#]} Rxg2+ $3 {[%emt 0:01:46][%mdl 512]} 38. Kxg2 {[%emt 0:00:03]} Rxf3 {[%emt 0:00:01][%mdl 4096] Endgame KQ-KRB} 39. Kg1 {[%emt 0:00:41]} Rxb3 {[%emt 0:00:03] ...Rb2 is the strong threat.} 40. Qe7 {[%emt 0:00:02]} Rg3+ {[%emt 0:00:20]} 41. Kf1 {[%emt 0:00:32]} b3 {[%emt 0:01:01][%cal Bb4b3,Bb3b2][%mdl 32]} 42. Qxb7 {[%emt 0:00:02]} Rg2 $2 {[%emt 0:00:01]} (42... Kh7 {mates} 43. h4 Rh3 44. Ke1 Rh2 45. Qc8 b2 46. Qf5+ Kh8 47. h5 Rh1+ 48. Kd2 b1=Q 49. Qxb1 Rxb1 50. Kc2 Rb3 51. a5 Ra3 52. Kc1 Rxa5 53. Kb2 c5 54. Kc2 Ra3 55. Kb2 Rf3 56. Kc1 c4 57. Kb2 Rh3 58. Kb1 c3 59. Kc2 Re3 60. Kb1 Bb3 61. Kc1 Re1#) 43. a5 $2 {[%emt 0:00:11][%mdl 8192] This move loses the game for White.} (43. Qc8+ $17 Kf7 44. Qf5+ Ke7 45. Qe5+ Kf8 46. Qf5+ Ke7 47. a5) 43... Ra2 {[%emt 0:00:06] Black mates.} 44. a6 {[%emt 0:01:21]} b2 {[%emt 0:00:01]} 45. a7 {[%emt 0:00:10]} Ra1+ {[%emt 0:00:02]} 46. Kf2 {[%emt 0:00:00] [#]} Rxa7 $3 {[%emt 0:00:07][%mdl 512]} 47. Qc8+ {[%emt 0:00:00]} (47. Qxa7 b1=Q) 47... Kh7 {[%emt 0:00:04] Weighted Error Value: White=0.65/Black=0.18 (very precise)} 0-1

[Event "Slovakia Open 2022"]
[Site "Bratislava"]
[Date "2022.10.02"]
[Round "8.9"]
[White "Stevik, Patrik"]
[Black "Lecky, Juraj"]
[Result "1-0"]
[ECO "D60"]
[WhiteElo "2148"]
[BlackElo "2070"]
[Annotator "TA"]
[PlyCount "53"]
[EventDate "2022.09.30"]
[EventCountry "SVK"]
[SourceTitle "playchess.com"]
[Source "ChessBase"]
[SourceQuality "1"]
[TimeControl "2700+10"]

{[%evp 22,53,25,11,22,27,63,64,56,64,116,112,103,75,92,94,101,80,245,204,212,202,220,201,285,246,237,145,163,166,300,296,289,290]} 1. c4 {[%emt 0:00:38]} e6 {[%emt 0:00:01]} 2. Nc3 {[%emt 0:00:17]} d5 {[%emt 0:00:13]} 3. d4 {[%emt 0:00:15]} Be7 {[%emt 0:01:51]} 4. Nf3 {[%emt 0:00:54]} Nf6 {[%emt 0:00:02]} 5. Bg5 {[%emt 0:00:27]} O-O {[%emt 0:02:48]} 6. e3 {[%emt 0:01:14]} Nbd7 {[%emt 0:00:33]} 7. Bd3 {[%emt 0:00:52]} dxc4 {[%emt 0:01:26]} 8. Bxc4 {[%emt 0:00:02]} c5 {[%emt 0:00:10]} 9. O-O {[%emt 0:00:53]} a6 {[%emt 0:02:42]} 10. a4 {[%emt 0:00:34]} cxd4 {[%emt 0:00:50]} 11. Nxd4 {[%emt 0:00:14]} Ne5 {[%emt 0:05:37]} 12. Be2 {[%emt 0:00:47]} Bd7 {[%emt 0:00:18] D60: Queen's Gambit Declined: Classical: Unusual White 7th moves.} 13. Qb3 {[%emt 0:01:16] [#]} Nc6 $146 {[%emt 0:15:57]} ({Predecessor:} 13... Qc8 14. Rac1 Ng6 15. Nd5 Nxd5 16. Rxc8 Rfxc8 17. Bxe7 Ngxe7 18. e4 Nf4 19. Qxb7 Rd8 20. Bf3 {½-½ (129) Tsvetkov,A (2404)-Manafov,V (2236) Tornelo INT 2021}) 14. Qxb7 {[%emt 0:04:34]} Nxd4 {[%emt 0:03:12] White is slightly better.} 15. exd4 {[%emt 0:00:24]} Rb8 {[%emt 0:00:52]} (15... Qc8 $14 16. Qxc8 Bxc8) 16. Qxa6 $16 {[%emt 0:00:55] White is much more active.} Rxb2 {[%emt 0:00:05]} 17. Bf3 {[%emt 0:01:04]} Bc8 {[%emt 0:00:49] [#]} 18. Qa7 {[%emt 0:03:23]} Rb6 {[%emt 0:04:57]} 19. Nb5 {[%emt 0:03:11] Strongly threatening Rfc1.} Bd6 $2 {[%emt 0:02:13] A mistake that costs the game.} (19... Ra6 $16 {might work better.} 20. Qc7 Bd7) 20. Bxf6 {[%emt 0:01:44]} gxf6 {[%emt 0:00:07]} 21. Nxd6 {[%emt 0:00:39]} Qxd6 {[%emt 0:00:11]} 22. a5 {[%emt 0:00:35]} Rb4 {[%emt 0:01:58]} (22... Ra6 $142 23. Qc5 e5 24. Qxd6 Rxd6 25. dxe5 fxe5) 23. Rfd1 {[%emt 0:00:35]} ({But not} 23. a6 Rb6 24. Be2 Rb2 $18) 23... Ba6 {[%emt 0:00:02]} 24. Qc5 {[%emt 0:03:23]} Rd8 {[%emt 0:00:32][%cal Rb4d4]} 25. Qh5 {[%emt 0:00:09]} Rxd4 {[%emt 0:00:17]} (25... Qf4 {keeps fighting.}) 26. Rxd4 $18 {[%emt 0:00:06]} Qxd4 {[%emt 0:00:10]} 27. Rd1 {[%emt 0:00:04] Weighted Error Value: White=0.20 (precise) /Black=0.53} 1-0

[Event "Slovakia Open 2022"]
[Site "Bratislava"]
[Date "2022.10.02"]
[Round "8.10"]
[White "Merva, Frantisek"]
[Black "Hnatyshyn, Anastasiia"]
[Result "0-1"]
[ECO "A83"]
[WhiteElo "1981"]
[BlackElo "2087"]
[Annotator "TA"]
[PlyCount "134"]
[EventDate "2022.09.30"]
[EventCountry "SVK"]
[SourceTitle "playchess.com"]
[Source "ChessBase"]
[SourceQuality "1"]
[TimeControl "2700+10"]

{[%evp 9,134,-2,22,32,47,21,12,0,16,24,36,10,18,-23,-28,-66,-40,-48,0,-47,130,46,45,39,1037,0,0,0,10,0,0,0,0,0,17,0,10,3,108,114,140,0,13,0,0,0,0,0,0,0,41,0,0,-79,0,-48,-54,-55,0,0,0,0,108,114,136,0,202,0,120,66,56,0,164,89,184,134,310,0,312,0,0,0,0,0,0,0,0,-505,-512,-580,-511,-497,-486,-937,-909,-1031,-990,-1091,-1065,-29966,-29968,-29964,-5289,-6175,-6196,-1756,-1731,-29982,-29983,-29986,-29987,-29987,-29988,-29991,-29984,-29984,-29985,-29985,-29986,-29987,-29987,-29987,-29988,-29988,-29989,-29989,-29990]} 1. d4 {[%emt 0:00:06]} f5 {[%emt 0:00:02]} 2. e4 {[%emt 0:00:16]} fxe4 {[%emt 0:00:27]} 3. Nc3 {[%emt 0:00:05]} Nf6 {[%emt 0:00:16]} 4. Bg5 {[%emt 0:00:04]} e6 {[%emt 0:01:10]} 5. f3 {[%emt 0:01:39]} e3 {[%emt 0:02:17]} 6. Bxe3 {[%emt 0:02:15] A83: Dutch Defence: Staunton Gambit with 3 Nc3 Nf6 4 Bg5.} Bb4 {[%emt 0:01:04]} 7. a3 {[%emt 0:00:19]} Nd5 {[%emt 0:02:34]} 8. Bd2 {[%emt 0:03:48] [#] The position is equal.} Nxc3 $146 {[%emt 0:00:09]} ({Predecessor:} 8... Be7 9. Ne4 Nc6 10. c3 Nf6 11. Bd3 d5 12. Nxf6+ Bxf6 13. Qc2 g6 14. f4 Ne7 {1-0 (44) Cruz Ramirez,N (1922)-Rodriguez Garcia,A (1938) Las Palmas 2016}) 9. bxc3 {[%emt 0:00:06]} Bd6 {[%emt 0:00:12]} 10. g3 {[%emt 0:00:45] Inhibits Qh4.} b6 {[%emt 0:00:48]} 11. Bg2 {[%emt 0:00:56]} Bb7 {[%emt 0:00:12]} 12. Ne2 {[%emt 0:00:07]} Qf6 {[%emt 0:03:34] Black is more active.} 13. O-O {[%emt 0:01:04]} h5 {[%emt 0:00:52]} (13... Nc6 $15) 14. Bf4 {[%emt 0:00:47]} (14. Bg5 $11 Qf5 15. f4 Bxg2 16. Kxg2) 14... g5 $2 {[%emt 0:04:14] [#]} (14... h4 $15) 15. Bxd6 {[%emt 0:00:03]} (15. Bxg5 $1 $16 {[%mdl 512]} Qf5 (15... Qg6 16. c4) 16. c4 $1) 15... cxd6 $14 {[%emt 0:00:02]} 16. f4 {[%emt 0:00:22]} g4 $2 {[%emt 0:02:09][%mdl 8192]} 17. Qd3 $2 {[%emt 0:00:08]} (17. Bxb7 $18 Na6 18. Bxa8) 17... Bxg2 $1 $11 {[%emt 0:01:58]} 18. Kxg2 {[%emt 0:00:10]} Nc6 {[%emt 0:00:10]} 19. d5 {[%emt 0:00:59]} exd5 {[%emt 0:00:54]} 20. Qxd5 {[%emt 0:00:01]} Qe6 {[%emt 0:00:06]} 21. Qd3 {[%emt 0:01:04]} O-O-O {[%emt 0:01:07]} 22. f5 {[%emt 0:03:08]} Qf6 {[%emt 0:01:11]} 23. Nf4 {[%emt 0:00:07] Threatens to win with Nd5.} Ne7 {[%emt 0:03:49]} (23... h4 $11) 24. Ng6 $16 {[%emt 0:06:58] Strongly threatening Qd4.} Rhe8 {[%emt 0:00:59][%cal Bh8e8,Be8e5,Be5c5][%mdl 32]} 25. Nh4 {[%emt 0:01:00]} (25. a4 $1 $16) 25... Nc6 {[%emt 0:00:59]} 26. a4 {[%emt 0:00:22]} Re5 {[%emt 0:00:29]} 27. Rad1 $1 {[%emt 0:04:33]} Kc7 {[%emt 0:03:02]} 28. Ng6 {[%emt 0:01:11]} Rc5 {[%emt 0:00:02]} 29. Nf4 {[%emt 0:00:23]} Ne7 {[%emt 0:01:10] Against Nd5+} 30. Nxh5 {[%emt 0:00:34]} (30. Rde1 $5 {[%cal Rf4h5]}) 30... Qh6 {[%emt 0:02:00]} 31. f6 {[%emt 0:02:24]} (31. Rf2 $11) 31... Nd5 {[%emt 0:01:23]} (31... Rxh5 $17 32. fxe7 Rxh2+ 33. Kg1 Rh1+ 34. Kf2 Rxf1+ 35. Rxf1 Qf6+ 36. Kg2 Qxe7) 32. Qxd5 {[%emt 0:04:23]} (32. Nf4 $11 {is superior.} Rh8 33. h4 gxh3+ 34. Kh1 (34. Kh2 Nxf6 35. Ne6+ dxe6 $15) 34... Nxf6 35. a5) 32... Rxd5 $15 {[%emt 0:00:55]} 33. Rxd5 {[%emt 0:00:10]} Qg6 {[%emt 0:02:41]} (33... Qe3 $1 $15 34. Rdf5 (34. Nf4 $2 Qxc3 35. Rd3 Qxc2+ 36. Rf2 Qxa4 $19) 34... Rf8) 34. Rdf5 $11 {[%emt 0:00:22]} Qf7 {[%emt 0:00:24]} 35. Nf4 {[%emt 0:00:05]} Rh8 {[%emt 0:00:34]} (35... Re8 $11) 36. Nd5+ $16 {[%emt 0:00:38]} Kb7 {[%emt 0:00:11]} 37. Kg1 {[%emt 0:01:39]} (37. R1f2 $1 $16) 37... Rc8 $2 {[%emt 0:02:09] [#]} (37... Qe6 $1 $11) 38. Rg5 $2 {[%emt 0:02:49]} (38. Re1 $1 $18 {[%cal Re1e7] Re7 is the strong threat.} Qh7 39. Ne7) 38... Rf8 {[%emt 0:00:59]} (38... Qe6 $11 {remains equal.}) 39. c4 {[%emt 0:00:04]} Qe6 {[%emt 0:01:27]} 40. Rgf5 {[%emt 0:00:14]} (40. Rg7 $14 Rf7 41. Rxf7 Qxf7 42. Rf4) 40... Rf7 $2 {[%emt 0:00:21] [#]} (40... Qe4 $11 {and Black is okay.}) 41. c3 {[%emt 0:00:40]} ({Better is} 41. R5f4 $1 $18) 41... a6 {[%emt 0:00:26]} (41... Qe2 $16) 42. R5f4 {[%emt 0:00:28]} (42. R5f2 $18) 42... Ka7 $2 {[%emt 0:00:44]} (42... b5 $16 {was necessary.}) 43. Rb1 $2 {[%emt 0:00:31]} (43. R1f2 $18) 43... Rh7 $2 {[%emt 0:00:12][%mdl 8192]} (43... Qe2 $11 {and Black stays safe.}) 44. Rxb6 $2 {[%emt 0:00:32]} ({White has to play} 44. Rb2 $18) 44... Qe2 {[%emt 0:00:14]} 45. Rf2 {[%emt 0:00:02]} Qe1+ {[%emt 0:00:15]} 46. Rf1 {[%emt 0:00:04]} Qe2 {[%emt 0:00:01][%csl Gh7,LRc4,LRh2][%cal Re2h2] Dancing on a razor blade.} (46... Qd2 $5 47. Rf2 $8 Qe1+ 48. Rf1 Qd2 $11) 47. Rf2 {[%emt 0:00:03]} Qxc4 {[%emt 0:00:16]} 48. Rb4 $2 {[%emt 0:03:59][%mdl 8192] Black continues to play with concentration.} Qxd5 $19 {[%emt 0:00:10]} 49. Rd4 {[%emt 0:00:04]} Qe6 {[%emt 0:00:10]} 50. Rdf4 {[%emt 0:00:04]} Rf7 {[%emt 0:00:10]} ({Don't go for} 50... Qe1+ $2 51. Rf1 Qe3+ 52. Kg2 $19) 51. h4 {[%emt 0:00:12]} (51. h3 $142 Qe1+ 52. Kg2 gxh3+ 53. Kh2) 51... Qe1+ {[%emt 0:00:24]} 52. Kg2 {[%emt 0:00:05]} Qxc3 {[%emt 0:00:03] White must now prevent ...d5.} 53. Rxg4 {[%emt 0:00:08]} Rxf6 {[%emt 0:00:05]} 54. Rxf6 {[%emt 0:00:06]} Qxf6 {[%emt 0:00:01] KQ-KR} 55. Rf4 {[%emt 0:00:00]} Qg7 {[%emt 0:00:10]} 56. h5 {[%emt 0:00:02]} d5 {[%emt 0:00:03]} 57. g4 {[%emt 0:00:03]} d4 {[%emt 0:00:18] ( -> ...d3)} 58. Kf3 {[%emt 0:00:01]} d3 {[%emt 0:00:10] Black mates.} 59. Re4 {[%emt 0:00:43]} Qc3 {[%emt 0:00:32]} 60. Re3 {[%emt 0:00:10]} Qc6+ {[%emt 0:00:17]} 61. Kf2 {[%emt 0:00:04]} d2 {[%emt 0:00:11]} 62. Rd3 {[%emt 0:00:02]} Qc2 {[%emt 0:00:15]} 63. Rxd7+ {[%emt 0:00:02]} Kb6 {[%emt 0:00:06]} 64. Kg3 {[%emt 0:00:50]} d1=Q {[%emt 0:00:10]} 65. Rxd1 {[%emt 0:00:10]} Qxd1 {[%emt 0:00:02]} 66. Kf4 {[%emt 0:00:00]} Qxa4+ {[%emt 0:00:11]} 67. Kf5 {[%emt 0:00:02]} Qd7+ {[%emt 0:00:04] Weighted Error Value: White=0.93/Black=0.39} 0-1

[Event "Slovakia Open 2022"]
[Site "Bratislava"]
[Date "2022.10.02"]
[Round "8.11"]
[White "Mandak, Miroslav"]
[Black "Nestorenko, Dmitry"]
[Result "1/2-1/2"]
[ECO "E12"]
[WhiteElo "1864"]
[BlackElo "2168"]
[Annotator "TA"]
[PlyCount "108"]
[EventDate "2022.09.30"]
[EventCountry "SVK"]
[SourceTitle "playchess.com"]
[Source "ChessBase"]
[SourceQuality "1"]
[TimeControl "2700+10"]

{[%evp 18,108,-14,-23,0,0,13,8,10,0,0,0,0,5,35,49,45,-63,-93,-95,-89,-99,-91,-109,-96,-136,-138,-129,-135,-177,-77,-106,-105,-120,-63,-66,-56,-23,0,0,0,0,0,0,0,0,0,0,0,0,0,0,0,-20,-13,-41,-54,-47,-45,-47,0,0,0,-82,0,-152,0,-174,-109,-964,-962,-1136,-1138,-1045,-485,-517,0,-996,0,-972,-854,-720,-96,-357,-335,-486,0,0,0,0,0,0,0]} 1. c4 {[%emt 0:00:24]} e6 {[%emt 0:02:53]} 2. Nf3 {[%emt 0:01:14]} d5 {[%emt 0:01:34]} 3. e3 {[%emt 0:00:35]} Nf6 {[%emt 0:00:08]} 4. Nc3 {[%emt 0:00:49]} Be7 {[%emt 0:00:33]} 5. d4 {[%emt 0:01:12]} O-O {[%emt 0:00:13]} 6. Be2 {[%emt 0:00:16]} dxc4 {[%emt 0:00:39]} 7. Bxc4 {[%emt 0:00:04]} b6 {[%emt 0:00:11]} 8. O-O {[%emt 0:00:42]} Bb7 {[%emt 0:00:01]} 9. a3 {[%emt 0:02:14]} Nbd7 {[%emt 0:00:54]} 10. b4 {[%emt 0:01:53][%cal Bb2b4,Bb4b5][%mdl 32]} c6 {[%emt 0:01:47] E12: Queen's Indian: Unusual White 4th moves, 4 a3, 4 Nc3 Bb7 5 a3 and 4 Nc3 Bb7 .} 11. Bb2 {[%emt 0:00:33]} a5 {[%emt 0:00:08]} 12. b5 {[%emt 0:03:02]} c5 {[%emt 0:00:15]} 13. d5 {[%emt 0:00:17]} exd5 {[%emt 0:00:02]} 14. Nxd5 {[%emt 0:00:07]} Nxd5 {[%emt 0:00:39]} 15. Bxd5 {[%emt 0:00:02] [#]} Qc7 $146 {[%emt 0:01:13]} ({Predecessor:} 15... Bxd5 16. Qxd5 Nf6 17. Qc4 Qc7 18. Rad1 Rad8 19. Be5 Qb7 20. a4 Rxd1 21. Rxd1 Rd8 22. Rxd8+ Bxd8 {½-½ (31) Walesch,R (1671)-Hartmann,R (1800) Bayern 2012}) 16. Bxb7 {[%emt 0:00:16]} Qxb7 {[%emt 0:00:02]} 17. Ne5 {[%emt 0:02:50]} (17. Qc2 $14) 17... Nxe5 $15 {[%emt 0:02:14]} 18. Bxe5 {[%emt 0:00:03]} Qe4 {[%emt 0:02:10] Inhibits Qg4.} 19. Bb2 {[%emt 0:03:56]} Rad8 {[%emt 0:01:56]} 20. Qe2 {[%emt 0:00:18]} Rd3 {[%emt 0:10:20]} 21. Rfd1 {[%emt 0:04:44]} Rfd8 {[%emt 0:00:12]} 22. Rxd3 {[%emt 0:01:43]} Qxd3 {[%emt 0:00:02]} 23. Kf1 {[%emt 0:01:48]} Kf8 {[%emt 0:07:47]} (23... a4 $19 24. Qxd3 Rxd3) 24. Ke1 {[%emt 0:06:25]} Qb3 $1 {[%emt 0:06:47]} 25. Rc1 {[%emt 0:00:09]} Bf6 {[%emt 0:00:32]} (25... Rd3 $17 {aiming for ...a4.} 26. Qc2 Qxb5) 26. Bxf6 {[%emt 0:01:43]} gxf6 {[%emt 0:00:01]} 27. Rd1 {[%emt 0:03:17]} Rxd1+ {[%emt 0:01:49]} 28. Qxd1 {[%emt 0:00:04]} Qxb5 $11 {[%emt 0:01:02][%mdl 4096] Endgame White must now prevent ...Qc6. KQ-KQ} 29. Qd6+ {[%emt 0:00:11]} Ke8 {[%emt 0:00:39]} 30. Qb8+ {[%emt 0:03:41]} Ke7 {[%emt 0:00:06]} 31. Qb7+ {[%emt 0:00:49]} Kf8 {[%emt 0:00:55]} 32. Qb8+ {[%emt 0:00:04]} Ke7 {[%emt 0:00:29]} 33. Qb7+ {[%emt 0:00:04]} Ke6 {[%emt 0:01:07]} 34. Qe4+ {[%emt 0:01:03]} Kd6 {[%emt 0:00:01]} 35. Qf4+ {[%emt 0:00:49]} Ke7 {[%emt 0:00:02]} 36. Qc7+ {[%emt 0:00:14]} Ke6 {[%emt 0:00:01]} 37. Qc8+ {[%emt 0:01:15]} Qd7 {[%emt 0:00:02]} 38. Qh8 {[%emt 0:00:37]} c4 {[%emt 0:00:48]} (38... Qa4 $15) 39. Qxh7 {[%emt 0:00:22] Threatens to win with Qe4+.} Qc6 {[%emt 0:00:10] Inhibits Qe4+.} 40. f3 {[%emt 0:01:01]} (40. e4 $11) 40... c3 {[%emt 0:00:48]} ({Black should play} 40... b5 $1 $17 {[%cal Rb5b4] Hoping for ...b4.} 41. Ke2 f5) 41. Qc2 $2 {[%emt 0:00:18]} ({Only move:} 41. Qe4+ $1 $11 Qxe4 42. fxe4) 41... Qc4 $2 {[%emt 0:00:22]} (41... b5 $1 $17 {And now ...f5 would win.} 42. h4 f5) 42. a4 $2 {[%emt 0:00:21]} (42. Qe4+ $11 {and White is okay.} Qxe4 43. fxe4) 42... Kd6 $1 $19 {[%emt 0:00:12]} 43. Kf2 $2 {[%emt 0:00:17][%mdl 8192]} (43. Qe4 $17 Qxe4 44. fxe4) 43... Kc5 {[%emt 0:00:06]} 44. e4 {[%emt 0:00:24]} Kb4 {[%emt 0:00:19] ...Qb3 is the strong threat.} 45. Ke3 {[%emt 0:00:03]} Qc5+ {[%emt 0:00:14]} (45... Qb3 $142 46. Kd3 Qc4+ 47. Ke3 b5 48. axb5 Qc5+ 49. Ke2 Qxb5+ 50. Ke3 a4 51. Qb1+ Kc5) 46. Ke2 {[%emt 0:00:02]} Qc4+ {[%emt 0:00:13]} (46... Qd4 $142 47. h4 Qc4+ 48. Ke1 f5) 47. Ke3 {[%emt 0:00:02]} Kc5 $2 {[%emt 0:00:03]} (47... b5 $19 48. axb5 Qc5+ 49. Ke2 Qxb5+ 50. Ke1 a4) 48. h4 $2 {[%emt 0:00:02][%mdl 8192]} (48. Kf2 $11) 48... Qd4+ {[%emt 0:00:01]} 49. Ke2 {[%emt 0:00:02] [#]} Kc4 $2 {[%emt 0:00:18]} (49... b5 $1 $19 {[%cal Rb5b4] has better winning chances.} 50. axb5 a4) 50. Qa2+ $2 {[%emt 0:00:21][%mdl 8192] [#]} (50. g4 $17 {was forced.}) 50... Kb4 $1 {[%emt 0:00:01]} 51. Qc2 {[%emt 0:00:01]} (51. h5 {is a better defense.} Qg1 52. Qc2 (52. Kd3 $2 Qd1+ 53. Ke3 c2 $19)) 51... Qg1 $2 {[%emt 0:00:24]} (51... Qc4+ $19 52. Ke3 f5 53. exf5 Qxh4 54. Qb1+ Kxa4) 52. Kd3 $11 {[%emt 0:00:00] The position is equal.} Qf1+ {[%emt 0:00:14]} 53. Ke3 $1 {[%emt 0:00:01]} Qe1+ {[%emt 0:00:10]} (53... Kc4 $5 54. Qa2+ $8 Kb4 $11) 54. Kd3 {[%emt 0:00:10]} Qf1+ {[%emt 0:00:01] Weighted Error Value: White=0.59/Black=0.67} 1/2-1/2